bitfinex-derivatives/quotes_ETHF0:USTF0_20240925
["timestamp","ask_amount","ask_price","bid_price","bid_amount"]
[1727243971288,1.98976003,2625.9,2625.8,1.96888914]
[1727243971490,1.98976003,2625.9,2625.8,2.44512864]
[1727243972384,1.98976003,2625.9,2625.8,2.92136354]
[1727243973088,1.98976003,2625.9,2625.8,3.39760272]
[1727243974282,1.98976003,2625.9,2625.8,2.92143769]
[1727243974487,1.98976003,2625.9,2625.8,3.39767777]
[1727243975084,1.98976003,2625.9,2625.8,3.39767762]
[1727243975392,1.98976003,2625.9,2625.8,2.80868797]
[1727243975584,1.98976003,2625.9,2625.8,2.33244804]
[1727243975777,1.98976003,2625.9,2625.8,2.92150145]
[1727243975984,1.98976003,2625.9,2625.8,4.09555448]
[1727243976184,1.98976003,2625.9,2625.8,2.92150145]
[1727243976389,1.98976003,2625.9,2625.8,4.09562531]
[1727243976783,1.98976003,2625.9,2625.8,2.54069145]
[1727243977291,2.87399779,2626.0,2625.8,2.54069145]
[1727243977477,0.7848,2625.9,2625.8,1.95163804]
[1727243978488,0.7848,2625.9,2625.8,2.5407787]
[1727243979084,0.7848,2625.9,2625.8,3.01703417]
[1727243979285,0.7848,2625.9,2625.8,2.42789351]
[1727243979477,0.7848,2625.9,2625.8,2.54078112]
[1727243979784,3.27099779,2625.9,2625.8,0.47625928]
[1727243980379,0.38081,2625.8,2625.7,0.3673]
[1727243980576,0.38081,2625.8,2625.7,0.95640445]
[1727243980803,0.38081,2625.8,2625.7,0.3673]
[1727243980981,0.38081,2625.8,2625.7,0.95640444]
[1727243982586,3.27100779,2625.9,2625.7,1.33723444]
[1727243982788,0.38081,2625.8,2625.7,0.3673]
[1727243982990,0.38081,2625.8,2625.7,0.95633257]
[1727243983382,1.99427341,2625.8,2625.7,2.33632193]
[1727243983687,1.99427341,2625.8,2625.7,1.33716257]
[1727243984301,1.99427341,2625.8,2625.7,1.74728936]
[1727243984592,1.99427341,2625.8,2625.7,3.43625181]
[1727243985489,1.99427341,2625.8,2625.7,3.43624806]
[1727243985787,1.99427341,2625.8,2625.7,3.912507]
[1727243986089,3.25478779,2626.0,2625.8,0.38081]
[1727243986483,0.3808,2625.9,2625.7,2.84727936]
[1727243986788,1.99417184,2625.8,2625.7,2.84727936]
[1727243986986,1.99417184,2625.8,2625.7,3.53168253]
[1727243987189,1.99417184,2625.8,2625.7,1.95542149]
[1727243987588,1.99417184,2625.8,2625.7,2.33625149]
[1727243988300,1.99417184,2625.8,2625.7,2.81251566]
[1727243988594,1.99417184,2625.9,2625.8,0.38081]
[1727243988889,1.99417184,2625.9,2625.8,0.96977213]
[1727243990296,1.99417184,2625.9,2625.8,1.96905083]
[1727243991193,1.99417184,2625.9,2625.8,1.3800887]
[1727243991383,1.99417184,2625.9,2625.8,1.96902777]
[1727243991991,1.99417184,2625.9,2625.8,0.96974907]
[1727243993290,1.99417184,2625.9,2625.8,1.96902777]
[1727243993494,1.99417184,2625.9,2625.8,41.76974907]
[1727243993796,1.99417184,2625.9,2625.8,42.76902777]
[1727243994506,1.99417184,2625.9,2625.8,42.76904088]
[1727243994697,1.99417184,2625.9,2625.8,1.96904088]
[1727243995797,1.99417184,2625.9,2625.8,0.96976218]
[1727243996197,1.99417184,2625.9,2625.8,1.96904088]
[1727243996497,1.99417184,2625.9,2625.8,1.96904131]
[1727243996696,1.99417184,2625.9,2625.8,2.44529017]
[1727243996995,1.99417184,2625.9,2625.8,1.96904131]
[1727243998009,1.99417184,2625.9,2625.8,1.3800887]
[1727243998189,1.99417184,2625.9,2625.8,1.96904674]
[1727243998788,1.99417184,2625.9,2625.5,1.98846457]
[1727243998789,0.38084,2625.7,2625.5,0.9992787]
[1727243998989,0.38084,2625.7,2625.6,0.58899511]
[1727243999197,2.4946124,2625.7,2625.5,0.9992787]
[1727243999394,2.37644443,2625.6,2625.5,40.8]
[1727243999590,1.99560443,2625.6,2625.5,41.38895427]
[1727243999799,1.99560443,2625.6,2625.5,0.96981427]
[1727244000098,1.99560443,2625.6,2625.5,0.58895427]
[1727244000286,2.37644443,2625.6,2625.5,0.58895427]
[1727244000487,0.38086,2625.5,2625.3,0.9992787]
[1727244000698,0.38086,2625.5,2625.2,1.3980787]
[1727244000699,3.0951154,2625.4,2625.2,1.3980787]
[1727244000889,0.3809,2625.2,2625.1,0.9992787]
[1727244001100,0.38091,2625.1,2625.0,0.9992787]
[1727244001400,1.49531545,2625.1,2625.0,0.58901343]
[1727244001804,7.07390183,2625.2,2624.9,42.1802187]
[1727244001994,1.49529721,2625.1,2625.0,0.38093]
[1727244002304,1.49529721,2625.1,2625.0,8.59449817]
[1727244003615,0.99595332,2625.1,2625.0,8.59449817]
[1727244005902,0.95233,2625.0,2624.6,0.9992787]
[1727244006094,0.95233,2625.0,2624.4,3.9801]
[1727244006095,0.381,2624.5,2624.4,3.9801]
[1727244006294,0.381,2624.5,2624.0,3.04246457]
[1727244006295,0.38103,2624.3,2624.1,5.15727661]
[1727244006596,0.38103,2624.3,2624.1,4.55309791]
[1727244006597,1.1,2624.3,2624.1,4.55309791]
[1727244006797,1.1,2624.3,2624.1,4.93415791]
[1727244006998,1.1,2624.3,2624.1,4.45917296]
[1727244007211,1.1,2624.3,2624.1,4.07812296]
[1727244007409,1.48103,2624.3,2624.1,4.07812296]
[1727244007710,1.1,2624.3,2624.1,4.07812296]
[1727244008402,0.77392,2624.4,2624.1,4.07812296]
[1727244008605,0.3929,2624.4,2624.1,4.07812296]
[1727244008802,0.3929,2624.4,2624.1,4.45918296]
[1727244009002,0.3929,2624.4,2624.1,4.07812296]
[1727244009195,0.77392,2624.4,2624.1,4.07812296]
[1727244009609,0.77392,2624.4,2624.1,0.87032296]
[1727244009795,0.3929,2624.4,2624.1,0.3951]
[1727244009999,0.3929,2624.4,2624.1,1.87616]
[1727244010309,0.77392,2624.4,2624.1,1.4951]
[1727244010508,0.3929,2624.4,2624.1,1.87616]
[1727244010799,0.3929,2624.4,2624.1,1.4951]
[1727244011007,0.77392,2624.4,2624.1,1.4951]
[1727244011598,0.3929,2624.4,2624.1,1.87616]
[1727244011999,0.77392,2624.4,2624.1,1.4951]
[1727244012503,0.3929,2624.4,2624.1,1.87616]
[1727244012708,0.77392,2624.4,2624.1,1.87616]
[1727244012906,0.77392,2624.4,2624.1,0.3951]
[1727244013099,4.3078,2624.3,2624.0,40.8]
[1727244013298,0.38104,2624.3,2623.8,1.4665]
[1727244013495,0.38104,2624.3,2623.9,1.1]
[1727244013699,0.38104,2624.3,2624.0,41.1984]
[1727244014509,0.38104,2624.3,2624.0,41.57947]
[1727244014696,0.38104,2624.3,2624.0,0.3984]
[1727244015907,0.38104,2624.3,2624.0,1.17557]
[1727244016210,1.1,2624.3,2623.8,1.4665]
[1727244016405,2.7729,2624.4,2623.8,1.11609]
[1727244016604,0.38105,2624.2,2623.9,8.59250662]
[1727244016903,2.7729,2624.4,2623.8,0.735]
[1727244017108,0.77717,2624.1,2623.8,1.1161]
[1727244017421,0.38107,2624.0,2623.8,1.1161]
[1727244017708,0.38107,2624.0,2623.8,0.735]
[1727244017910,0.3961,2624.1,2623.8,0.735]
[1727244018113,0.77717,2624.1,2623.8,1.1161]
[1727244019205,0.3961,2624.1,2623.8,0.735]
[1727244019515,0.77716,2624.1,2623.8,1.11609]
[1727244020204,0.77716,2624.1,2623.8,0.735]
[1727244020411,0.77716,2624.1,2623.8,1.11609]
[1727244020606,0.77716,2624.1,2623.9,0.38109]
[1727244020913,0.77716,2624.1,2623.8,1.11609]
[1727244021119,0.38106,2624.1,2623.8,1.11609]
[1727244022003,0.38105,2624.2,2623.9,0.38108]
[1727244022206,3.2078,2624.3,2624.2,0.38104]
[1727244022415,3.2078,2624.3,2624.1,0.38105]
[1727244022712,3.9918,2624.6,2624.2,0.371]
[1727244022913,5.85963567,2624.7,2624.4,0.38101]
[1727244023305,5.47865567,2624.7,2624.5,0.381]
[1727244023512,5.47865567,2624.7,2624.3,0.788]
[1727244023813,5.47865567,2624.7,2624.5,0.381]
[1727244023814,4.4835,2624.7,2624.5,0.381]
[1727244024115,4.4835,2624.7,2624.3,1.16902]
[1727244024329,4.86448,2624.7,2624.4,0.38101]
[1727244025108,0.38099,2624.6,2624.4,0.38101]
[1727244025420,4.86448,2624.7,2624.5,0.381]
[1727244025608,4.86448,2624.7,2624.4,0.38101]
[1727244026210,0.75548,2624.7,2624.4,0.38101]
[1727244027210,0.75548,2624.7,2624.3,1.16902]
[1727244027211,0.38099,2624.6,2624.3,1.16902]
[1727244027517,0.381,2624.6,2624.3,1.16902]
[1727244027811,0.381,2624.6,2624.4,0.38101]
[1727244028038,3.96328,2624.7,2624.4,0.38101]
[1727244028206,0.38099,2624.6,2624.4,0.38101]
[1727244028601,3.96328,2624.7,2624.4,0.38101]
[1727244029015,0.38099,2624.6,2624.4,0.38101]
[1727244031436,3.5823,2624.7,2624.4,0.38101]
[1727244031615,0.38099,2624.6,2624.4,0.38101]
[1727244033413,3.96328,2624.7,2624.4,0.38101]
[1727244034219,0.38099,2624.6,2624.4,0.38101]
[1727244035920,3.96328,2624.7,2624.3,0.788]
[1727244036452,3.5823,2624.7,2624.3,0.788]
[1727244036720,3.2078,2624.7,2624.6,0.38099]
[1727244037112,3.2078,2624.7,2624.6,0.75939]
[1727244038417,3.2078,2624.7,2624.6,1.85939]
[1727244039418,3.2078,2624.7,2624.6,11.66979]
[1727244040619,8.99271973,2625.2,2624.9,0.38094]
[1727244040817,8.99271973,2625.2,2625.0,0.4035]
[1727244041524,8.99271973,2625.2,2625.0,0.78443]
[1727244041917,8.61180973,2625.2,2625.0,0.78443]
[1727244042256,7.83360973,2625.2,2625.0,0.78443]
[1727244042438,7.83360973,2625.2,2625.1,0.75331]
[1727244042620,7.83360973,2625.2,2625.1,2.25011]
[1727244042816,0.99515567,2625.5,2625.4,0.38087]
[1727244043118,1.89599721,2625.6,2625.4,0.38087]
[1727244043119,0.4007,2625.6,2625.4,0.38087]
[1727244043321,4.60975567,2625.7,2625.5,0.38086]
[1727244043635,4.60975567,2625.7,2625.3,1.1]
[1727244043636,4.60975567,2625.7,2625.6,0.398]
[1727244044133,0.38084,2625.6,2625.3,0.38088]
[1727244044319,0.38086,2625.5,2625.3,0.398]
[1727244044721,0.78157,2625.4,2625.3,0.398]
[1727244044919,0.4007,2625.4,2625.3,0.398]
[1727244045125,0.78157,2625.4,2625.2,40.8]
[1727244045420,0.78157,2625.4,2625.1,1.1501]
[1727244045822,0.78157,2625.4,2625.2,8.06188798]
[1727244046724,0.4007,2625.4,2625.2,8.06188798]
[1727244046918,0.4007,2625.4,2625.2,8.44277798]
[1727244047727,0.78158,2625.4,2625.2,8.06188798]
[1727244047927,0.3809,2625.3,2625.2,8.06188798]
[1727244048630,0.76178,2625.3,2625.2,8.06188798]
[1727244049059,1.13108,2625.3,2625.1,0.7692]
[1727244049222,0.3809,2625.2,2625.1,0.7692]
[1727244049531,0.7502,2625.3,2625.1,0.3724]
[1727244049532,1.13109,2625.3,2625.1,0.3724]
[1727244049724,0.7502,2625.3,2625.1,0.75331]
[1727244055741,1.13109,2625.3,2625.1,0.75331]
[1727244056832,0.4007,2625.4,2625.1,0.3724]
[1727244057336,0.78157,2625.4,2625.2,0.38089]
[1727244058136,0.78157,2625.4,2625.3,0.3895]
[1727244061749,0.78157,2625.4,2625.1,0.3724]
[1727244061750,0.3809,2625.2,2625.1,0.3724]
[1727244062042,0.3809,2625.2,2625.1,0.7465]
[1727244062338,0.3809,2625.2,2625.1,0.3741]
[1727244062544,0.95226,2625.2,2624.8,0.77976]
[1727244062738,0.38094,2624.9,2624.8,0.3741]
[1727244062936,7.33115567,2625.1,2624.6,0.3762]
[1727244063139,7.33115567,2625.1,2624.7,0.3741]
[1727244063140,0.38093,2625.0,2624.7,0.3741]
[1727244064039,0.38093,2625.0,2624.8,0.3909]
[1727244064241,0.38094,2624.9,2624.8,0.3909]
[1727244064631,6.05115567,2625.1,2624.8,0.3909]
[1727244064632,0.38094,2625.0,2624.8,0.3909]
[1727244064837,0.38093,2625.0,2624.8,0.77185]
[1727244065034,2.84335567,2625.1,2624.8,0.3909]
[1727244065434,1.37608567,2625.0,2624.8,0.77185]
[1727244067142,0.99515567,2625.0,2624.8,0.77185]
[1727244067334,1.37608567,2625.0,2624.8,0.77185]
[1727244067536,0.99515567,2625.0,2624.8,0.3909]
[1727244067844,1.37608567,2625.0,2624.8,0.77185]
[1727244068043,0.38093,2625.0,2624.8,0.77185]
[1727244068344,1.37608567,2625.0,2624.8,0.77185]
[1727244068568,0.99515567,2625.0,2624.9,0.38094]
[1727244069041,0.99515567,2625.1,2624.8,0.3909]
[1727244069234,0.99515567,2625.1,2624.9,0.38093]
[1727244069436,0.99515567,2625.0,2624.9,0.38093]
[1727244069631,0.99515567,2625.0,2624.9,0.38094]
[1727244070748,1.39355567,2625.1,2624.9,0.38094]
[1727244071045,0.99515567,2625.1,2624.9,0.38094]
[1727244071243,0.99515567,2625.1,2625.0,1.14613]
[1727244071939,0.99515567,2625.3,2625.2,0.3809]
[1727244072442,1.49529721,2625.4,2625.3,0.38088]
[1727244072443,0.99515567,2625.4,2625.3,0.38088]
[1727244072944,0.99515567,2625.4,2625.3,1.48088]
[1727244073138,0.99515567,2625.5,2625.4,0.38087]
[1727244074133,4.20295567,2625.6,2625.4,0.38087]
[1727244074433,3.2078,2625.6,2625.5,0.38086]
[1727244074635,3.2078,2625.6,2625.4,0.38086]
[1727244074841,0.99383878,2625.5,2625.4,0.38086]
[1727244076335,4.20163878,2625.6,2625.4,0.38086]
[1727244076640,0.99383878,2625.5,2625.4,0.38086]
[1727244078446,0.99383878,2625.5,2625.4,0.75166]
[1727244079139,4.20163878,2625.6,2625.4,0.75166]
[1727244079338,4.58247878,2625.6,2625.4,0.75166]
[1727244080338,4.20163878,2625.6,2625.4,0.75166]
[1727244081251,4.58247878,2625.6,2625.4,0.75166]
[1727244081455,0.99383878,2625.5,2625.4,0.75166]
[1727244091359,0.99383878,2625.5,2625.4,0.3708]
[1727244091565,1.89709721,2625.6,2625.4,0.75167]
[1727244091960,1.49529721,2625.5,2625.4,0.38087]
[1727244092195,1.88279721,2625.5,2625.4,0.38087]
[1727244092567,0.3875,2625.5,2625.4,0.38087]
[1727244093072,1.38235238,2625.5,2625.4,0.38087]
[1727244093865,0.99485238,2625.5,2625.4,0.38087]
[1727244094966,0.99485238,2625.5,2625.4,1.48087]
[1727244096372,2.26602721,2625.7,2625.4,1.48087]
[1727244096373,0.99485238,2625.6,2625.5,0.38086]
[1727244096670,1.88519721,2625.7,2625.6,0.401]
[1727244096861,1.8818783,2625.7,2625.6,0.78184]
[1727244097473,2.2627083,2625.7,2625.6,0.401]
[1727244097683,1.8818783,2625.7,2625.6,0.78184]
[1727244097873,1.8818783,2625.7,2625.6,0.401]
[1727244098178,1.8818783,2625.7,2625.6,0.78184]
[1727244098373,1.8818783,2625.7,2625.6,1.17164]
[1727244098964,1.4919783,2625.7,2625.6,1.55614]
[1727244099168,1.4919783,2625.9,2625.6,1.1753]
[1727244099369,0.9945831,2625.8,2625.6,1.1753]
[1727244099566,0.9945831,2625.8,2625.7,1.48083]
[1727244099770,0.9945831,2625.9,2625.8,0.38081]
[1727244099987,0.9945831,2625.9,2625.7,1.1]
[1727244099988,0.9945831,2626.0,2625.9,0.3808]
[1727244100167,2.2793783,2626.1,2625.9,1.4808]
[1727244100168,1.7819831,2626.1,2625.9,1.4808]
[1727244100372,1.7819831,2626.1,2626.0,0.38078]
[1727244100575,1.7819831,2626.1,2626.0,0.78378]
[1727244101475,0.9945831,2626.2,2626.0,0.403]
[1727244101671,0.9945831,2626.2,2626.1,1.1]
[1727244101987,0.9945831,2626.2,2626.1,1.48077]
[1727244103176,1.3753331,2626.2,2626.1,1.1]
[1727244103377,0.9945831,2626.2,2626.1,1.1]
[1727244103573,0.9945831,2626.2,2626.0,1.56047]
[1727244105083,0.9945831,2626.2,2626.0,1.1797]
[1727244105283,1.7694331,2626.3,2626.0,1.56047]
[1727244106287,1.7694331,2626.3,2626.1,0.38076]
[1727244106589,1.3886831,2626.3,2626.1,1.48076]
[1727244106781,1.7694231,2626.3,2626.1,1.48076]
[1727244106982,1.3886831,2626.3,2626.1,1.48076]
[1727244107187,0.38075,2626.2,2626.0,1.56048]
[1727244107393,0.38075,2626.2,2626.0,2.52147]
[1727244107580,4.9772331,2626.3,2626.1,0.38076]
[1727244107782,4.9772331,2626.3,2626.0,2.52147]
[1727244108188,0.38075,2626.2,2626.0,2.1407]
[1727244108486,1.3886831,2626.3,2626.1,0.38077]
[1727244108689,1.7694331,2626.3,2626.1,0.38077]
[1727244108886,0.38076,2626.2,2626.0,1.1797]
[1727244109315,0.38076,2626.2,2626.0,1.56048]
[1727244111287,0.38077,2626.1,2626.0,1.1797]
[1727244111491,1.3753431,2626.2,2626.0,1.56048]
[1727244111989,0.38076,2626.2,2626.0,1.56048]
[1727244112184,1.3753431,2626.2,2626.0,1.56048]
[1727244112614,1.4941,2626.3,2626.0,1.56047]
[1727244112615,2.4886831,2626.3,2626.0,1.56047]
[1727244112787,0.38075,2626.2,2626.0,1.56047]
[1727244113191,1.7694331,2626.3,2626.0,1.1797]
[1727244113387,0.38076,2626.2,2626.0,1.56047]
[1727244115086,1.7694331,2626.3,2626.1,0.38077]
[1727244115287,0.9945831,2626.2,2626.1,0.38077]
[1727244115596,1.3753431,2626.2,2626.0,1.56047]
[1727244116017,0.38076,2626.2,2626.0,1.56047]
[1727244116198,1.3753431,2626.2,2626.0,1.56047]
[1727244116419,1.3753431,2626.2,2626.0,1.1797]
[1727244116597,1.3753431,2626.2,2626.0,1.56048]
[1727244116598,0.3976,2626.1,2626.0,1.56048]
[1727244116990,1.3753431,2626.2,2626.0,1.56048]
[1727244119493,0.38077,2626.1,2626.0,1.1797]
[1727244119888,1.3753531,2626.1,2626.0,1.1797]
[1727244120085,0.38077,2626.1,2626.0,1.1797]
[1727244121596,1.3753431,2626.2,2626.0,1.56048]
[1727244123296,0.9945831,2626.1,2626.0,1.56048]
[1727244123594,1.3753431,2626.2,2626.0,1.56048]
[1727244123892,0.9945831,2626.2,2626.0,2.66048]
[1727244124299,0.9945831,2626.2,2626.1,0.38077]
[1727244125196,1.3753431,2626.2,2626.0,2.66047]
[1727244125637,1.3753431,2626.2,2626.0,0.403]
[1727244125638,0.38077,2626.1,2626.0,0.403]
[1727244125894,0.77787,2626.1,2626.0,0.403]
[1727244126302,1.3916831,2626.1,2626.0,0.403]
[1727244126505,0.3971,2626.1,2626.0,0.403]
[1727244127401,0.3971,2626.1,2626.0,0.78378]
[1727244127599,0.77787,2626.1,2626.0,0.403]
[1727244127906,0.38079,2626.0,2625.8,1.73751]
[1727244128098,1.37526948,2626.0,2625.8,1.3567]
[1727244128299,1.37526948,2626.0,2625.8,9.51999533]
[1727244128501,1.37526948,2626.0,2625.8,9.90080533]
[1727244129203,0.3808,2625.9,2625.8,8.56099533]
[1727244129410,0.3808,2625.9,2625.7,0.7963]
[1727244129411,0.38081,2625.8,2625.7,0.959]
[1727244129603,1.14511,2625.8,2625.7,0.959]
[1727244129801,2.13958948,2625.8,2625.7,0.959]
[1727244130507,1.14511,2625.8,2625.7,0.959]
[1727244130807,2.13958948,2625.8,2625.7,0.959]
[1727244131514,1.36677948,2625.8,2625.7,0.959]
[1727244131903,0.99447948,2625.9,2625.7,1.33983]
[1727244132234,0.99447948,2625.9,2625.8,0.38081]
[1727244132514,0.99447948,2626.0,2625.9,0.3808]
[1727244132703,0.99447948,2626.0,2625.9,1.4808]
[1727244132904,0.99447948,2626.0,2625.9,1.1]
[1727244134311,1.8727483,2626.1,2625.9,1.1]
[1727244135413,1.4919783,2626.0,2625.9,1.1]
[1727244137015,0.38077,2626.1,2625.9,1.1]
[1727244137016,1.4919783,2626.1,2625.9,1.4808]
[1727244137418,1.4919783,2626.0,2625.9,1.4808]
[1727244137612,1.8727583,2626.0,2625.8,1.8578]
[1727244137809,1.4919783,2626.0,2625.8,2.23861]
[1727244138314,1.4919783,2625.9,2625.8,2.23861]
[1727244140111,1.4919783,2626.0,2625.9,0.3808]
[1727244140318,2.37577183,2626.1,2625.9,0.3808]
[1727244140517,1.99500183,2626.1,2625.9,0.3808]
[1727244140707,2.37577183,2626.1,2625.9,0.3808]
[1727244141011,1.99500183,2626.1,2625.8,1.8578]
[1727244141210,1.49345695,2626.0,2625.9,0.3808]
[1727244142315,2.37577183,2626.1,2625.9,0.3808]
[1727244142712,2.8669124,2626.2,2626.0,1.1]
[1727244142713,2.37576183,2626.2,2626.0,1.1]
[1727244142913,2.37576183,2626.2,2626.0,1.48078]
[1727244143119,2.37576183,2626.2,2626.0,1.1]
[1727244143417,1.99500183,2626.1,2626.0,1.1]
[1727244143609,1.99500183,2626.1,2626.0,1.48078]
[1727244144217,3.2659624,2626.3,2626.1,0.38077]
[1727244144412,3.2659624,2626.3,2626.0,1.48077]
[1727244144717,1.9932019,2626.1,2626.0,1.48077]
[1727244144925,1.9932019,2626.1,2626.0,2.06954143]
[1727244145115,1.9932019,2626.1,2626.0,5.87754143]
[1727244145322,1.9932019,2626.1,2626.0,2.06954143]
[1727244145510,1.9932019,2626.1,2626.0,5.87754143]
[1727244146142,1.9932019,2626.1,2626.0,5.68397]
[1727244146524,1.9932019,2626.1,2626.0,6.27280171]
[1727244146814,1.9932019,2626.1,2626.0,6.27281422]
[1727244147624,1.9932019,2626.1,2626.0,6.27280771]
[1727244148125,1.9932019,2626.1,2626.0,2.46480771]
[1727244149830,1.9932019,2626.1,2626.0,5.68397]
[1727244150013,1.9932019,2626.1,2626.0,6.27280889]
[1727244150814,1.9932019,2626.1,2626.0,2.46480889]
[1727244151214,1.9932019,2626.1,2626.0,0.98403889]
[1727244151523,1.9932019,2626.1,2626.0,1.36481889]
[1727244151823,1.9932019,2626.1,2626.0,0.98403889]
[1727244152026,1.9932019,2626.1,2626.0,1.36481889]
[1727244152210,1.9932019,2626.1,2626.0,0.98403889]
[1727244152615,1.9932019,2626.1,2626.0,1.36481889]
[1727244152818,1.9932019,2626.1,2626.0,2.46481889]
[1727244153421,3.9851,2626.4,2626.0,2.46481889]
[1727244153422,1.9932019,2626.2,2626.1,0.38077]
[1727244153721,1.9932019,2626.2,2626.1,2.54579133]
[1727244154022,1.9932019,2626.3,2626.2,0.38075]
[1727244154221,1.9932019,2626.3,2626.2,1.75488889]
[1727244154428,1.9932019,2626.3,2626.2,42.15728889]
[1727244155335,1.9932019,2626.4,2626.2,42.15728889]
[1727244155527,1.9932019,2626.4,2626.3,0.3976]
[1727244156227,2.3739319,2626.4,2626.3,0.3976]
[1727244156628,1.9932019,2626.4,2626.3,0.77834]
[1727244156853,1.9932019,2626.4,2626.3,0.3976]
[1727244157632,2.3739319,2626.4,2626.3,0.3976]
[1727244158220,1.9932019,2626.4,2626.3,0.3976]
[1727244158923,2.3739319,2626.4,2626.3,0.3976]
[1727244159626,1.9932019,2626.4,2626.3,1.87834]
[1727244159827,1.9932019,2626.5,2626.3,1.87834]
[1727244160135,1.9932019,2626.5,2626.3,1.87833]
[1727244160721,1.9932019,2626.5,2626.4,40.8]
[1727244162834,1.9932019,2626.5,2626.4,41.18073]
[1727244163629,1.1307,2626.6,2626.4,41.18073]
[1727244163630,3.1239019,2626.6,2626.4,41.18073]
[1727244164038,1.9932019,2626.5,2626.4,40.8]
[1727244164230,3.5046019,2626.6,2626.4,40.8]
[1727244164429,1.9932019,2626.5,2626.4,40.8]
[1727244164829,3.1239019,2626.6,2626.4,40.8]
[1727244165637,3.1239019,2626.6,2626.4,0.38072]
[1727244166145,3.5046019,2626.6,2626.4,0.3861]
[1727244166332,3.1239019,2626.6,2626.4,0.76682]
[1727244167640,1.49326964,2626.5,2626.4,0.76682]
[1727244170744,2.62396964,2626.6,2626.4,0.76682]
[1727244170949,2.62396964,2626.6,2626.5,1.1]
[1727244172136,2.62396964,2626.6,2626.5,1.48071]
[1727244172331,2.62396964,2626.6,2626.5,1.1]
[1727244176247,2.62396964,2626.6,2626.5,1.48071]
[1727244176848,2.62396964,2626.6,2626.5,1.1]
[1727244183239,2.62396964,2626.6,2626.4,0.3861]
[1727244183240,1.5114,2626.6,2626.4,0.3861]
[1727244183443,1.49257726,2626.5,2626.4,0.3861]
[1727244183841,1.49257726,2626.5,2626.4,8.5591764]
[1727244184239,1.49257726,2626.5,2626.2,41.56845]
[1727244184240,1.87328726,2626.5,2626.2,41.56845]
[1727244184443,1.87328726,2626.5,2626.2,0.957]
[1727244184444,0.38074,2626.3,2626.2,0.957]
[1727244184646,1.87331726,2626.3,2626.1,0.78716]
[1727244184947,0.99507128,2626.2,2626.1,0.78716]
[1727244185448,0.99507128,2626.2,2626.1,10.50621754]
[1727244185843,0.99507128,2626.2,2626.1,9.91805923]
[1727244186552,0.99507128,2626.2,2626.1,10.50625995]
[1727244186853,0.99507128,2626.2,2626.1,9.91805923]
[1727244187241,0.99507128,2626.2,2626.1,9.53729923]
[1727244188047,0.99507128,2626.2,2626.1,10.12553187]
[1727244188445,0.99507128,2626.2,2626.1,10.12556757]
[1727244188645,0.99507128,2626.2,2626.1,8.43729923]
[1727244188646,1.87332726,2626.2,2626.1,8.43729923]
[1727244188949,2.28267726,2626.2,2626.1,8.43729923]
[1727244190457,2.66342726,2626.2,2626.1,8.43729923]
[1727244191251,2.28267726,2626.2,2626.1,8.43729923]
[1727244192148,2.66342726,2626.2,2626.1,8.43729923]
[1727244192349,2.28267726,2626.2,2626.1,8.43729923]
[1727244192745,2.28267726,2626.2,2626.1,8.81806923]
[1727244192938,2.28267726,2626.2,2626.1,8.43729923]
[1727244196445,2.28267726,2626.2,2626.1,9.02575239]
[1727244196654,1.89637726,2626.2,2626.1,9.02575239]
[1727244198045,1.89637726,2626.2,2626.1,8.43729923]
[1727244198251,1.89637726,2626.2,2626.1,9.02583208]
[1727244199353,1.89637726,2626.2,2626.1,10.40588078]
[1727244199752,1.89637726,2626.2,2626.1,9.02583208]
[1727244200157,1.89637726,2626.2,2626.1,9.40660208]
[1727244200362,1.49257726,2626.2,2626.1,9.40660208]
[1727244201160,1.49257726,2626.2,2626.1,10.88206666]
[1727244201479,1.49257726,2626.2,2626.1,10.29353381]
[1727244201655,1.49257726,2626.2,2626.1,11.3584143]
[1727244201984,1.49257726,2626.2,2626.1,10.29352489]
[1727244202147,1.49257726,2626.2,2626.1,10.02528148]
[1727244202554,1.49257726,2626.2,2626.1,10.40605148]
[1727244202755,1.49257726,2626.2,2626.1,10.88222842]
[1727244204051,2.3853019,2626.4,2626.2,0.38075]
[1727244204052,1.49257726,2626.3,2626.2,0.38075]
[1727244204250,1.49257726,2626.3,2626.2,2.44765355]
[1727244204460,2.3853019,2626.4,2626.2,2.44765355]
[1727244204661,2.3853019,2626.4,2626.2,1.85895]
[1727244205965,2.3853019,2626.4,2626.2,1.4782]
[1727244206262,2.3853019,2626.4,2626.2,1.85895]
[1727244206967,2.3853019,2626.4,2626.2,2.22975]
[1727244207362,1.4927391,2626.3,2626.2,2.22975]
[1727244207567,2.3853019,2626.4,2626.2,2.81846131]
[1727244207768,2.3853019,2626.4,2626.2,2.22975]
[1727244207963,2.7660319,2626.4,2626.2,2.22975]
[1727244208862,0.38074,2626.3,2626.2,1.849]
[1727244209170,0.38074,2626.3,2626.2,1.3377299]
[1727244209671,2.7660419,2626.4,2626.2,1.3377299]
[1727244209866,2.7660419,2626.4,2626.2,0.749]
[1727244210059,2.7660419,2626.4,2626.2,1.12975]
[1727244212172,2.3739419,2626.3,2626.2,0.749]
[1727244212364,1.9932019,2626.3,2626.1,1.5064]
[1727244212587,2.3739519,2626.3,2626.1,1.5064]
[1727244213065,2.3739519,2626.3,2626.1,1.88717]
[1727244213662,2.3739519,2626.3,2626.1,1.5064]
[1727244213869,2.3739519,2626.3,2626.1,1.88717]
[1727244214269,2.3739519,2626.3,2626.1,1.5064]
[1727244214270,1.8737269,2626.2,2626.1,1.5064]
[1727244214568,0.38075,2626.2,2626.1,2.09513166]
[1727244215262,2.3739519,2626.3,2626.1,2.09513166]
[1727244215499,2.3739519,2626.3,2626.1,1.5064]
[1727244215670,0.38075,2626.2,2626.1,1.5064]
[1727244215972,0.38075,2626.2,2626.1,2.09519006]
[1727244218468,2.3739519,2626.3,2626.1,2.47596006]
[1727244218770,2.3739519,2626.3,2626.1,1.88717]
[1727244219566,2.3739519,2626.3,2626.2,1.1]
[1727244219771,2.3739419,2626.3,2626.2,1.68895179]
[1727244220268,2.7660419,2626.4,2626.2,1.68895179]
[1727244220464,1.9932019,2626.3,2626.2,1.48075]
[1727244220664,1.9932019,2626.3,2626.2,1.68894714]